Cogmind - Beta 16.1 @@@ ROGUE MODE // 2026.02.18 @ 00:17:15 Player: AlmondRoll Result: Destroyed by H-77 Assassin with Coil Gun Performance ------------- Evolutions (6) 3000 Regions Visited (26) 5200 Robots Destroyed (116) 580 Value Destroyed (7903) 7903 Prototype IDs (41) 820 Alien Tech Used (0) 0 Bonus (13223) 13223 TOTAL SCORE: 30726 Bonus ------- High Alert Combat Kills 137 Follower Combat Kills 8730 Entered Garrisons 800 Entered DSFs 1000 Acquired ECA 300 Met Warlord at Base 500 MAIN.C Attacked Warlord 500 Warlord Defense Kills 1256 Cogmind --------- Core Integrity 0/1150 Matter 234/300 Energy 99/100 System Corruption 10% Temperature Cool (0) Movement Core (50) Location -3/Proximity Caves Parts ------- > --- POWER (2) -------- (None) > --- PROPULSION (6) --- (None) > --- UTILITY (5) ------ (None) > --- WEAPON (6) ------- (None) > --- INVENTORY (5) ---- Vortex Chain Reactor Nanoactuators Advanced Actuator Array Peak State ------------ > --- POWER ------------ Vortex Chain Reactor > --- PROPULSION ------- Myomer Leg Myomer Leg Myomer Leg Improved Thunder Leg Enhanced Biometal Leg Cooled Impulse Thruster > --- UTILITY ---------- High-capacity Storage Unit Makeshift Sensor Array Advanced Reaction Control System Experimental Phase Shifter Advanced Remote Shield > --- WEAPON ----------- 1B-0RG's Assimilator Power Sword > --- INVENTORY -------- Myomer Leg Matter Compressor Encrypted Comm Array Nanoactuators Advanced Actuator Array Improved Phase Shifter Improved Utility Shielding Graphene Brace Advanced Shield Generator High-powered Tractor Beam Nova Cannon RU-N14's Throwing Claymores v3 RU-N14's Throwing Claymores v3 RU-N14's Throwing Claymores v3 RU-N14's Throwing Claymores v3 Power Maul Power Sword Power Sword Power Sword Power Sword [Rating: 183] Favorites ----------- Power Antimatter Reactor Engine Light Deuterium Engine Power Core Micro Nuclear Core Reactor Antimatter Reactor Propulsion Thunder Leg Treads Light Treads Leg Thunder Leg Wheel Armored Huge Wheel Flight Unit Cooled Impulse Thruster Utility Huge Storage Unit Device Improved Heat Sink Storage Huge Storage Unit Processor Transport Network Coupler Protection Hardened Medium Armor Plating Weapon 1B-0RG's Assimilator Energy Gun Medium Laser Energy Cannon Subdweller Beam Cannon Ballistic Gun Enhanced Autogun Ballistic Cannon Light Cannon Launcher Heavy Missile Launcher Special Weapon Mining Laser Slashing Weapon Axe Special Melee Weapon 1B-0RG's Assimilator Build | -11 -10 -10 -8 -8 -8 -8 -7 -7 -7 -7 -6 -6 -6 -6 -6 -5 -5 -5 -5 -4 -4 -4 -4 -4 -4 -3 ------- Run | Yrd Mat Sub Mat Gar Mat Gar Fac Low Low Zio Pro Fac Gar Fac DSF Fac Gar Fac DSF Fac Was Fac Upp Upp War Pro Slots Evolved 12 | . . . 4 . . . 2 . . . . 2 . . . 2 . . . 2 . . . . . . Power 1 | . . . . . . . . . . . . . . . . . . . . 1 . . . . . . Propulsion 4 | . . . . . . . 2 . . . . 2 . . . . . . . . . . . . . . Utility 3 | . . . . . . . . . . . . . . . . 2 . . . 1 . . . . . . Weapon 4 | . . . 4 . . . . . . . . . . . . . . . . . . . . . . . Parts Attached 147 | 3 12 10 18 3 2 3 6 . . 2 1 5 14 1 5 6 6 . 7 6 . 18 3 2 14 . Power 19 | . 3 2 2 . . . 1 . . . . 1 3 . . . . . 1 1 . 4 . . 1 . Engine 5 | . 2 1 1 . . . . . . . . . . . . . . . . . . 1 . . . . Core 8 | . 1 1 1 . . . 1 . . . . 1 1 . . . . . 1 . . 1 . . . . Reactor 6 | . . . . . . . . . . . . . 2 . . . . . . 1 . 2 . . 1 . Propulsion 42 | 2 1 3 5 . 1 2 1 . . . . 4 7 . 3 . 2 . 1 2 . 5 1 . 2 . Treads 11 | 2 1 2 2 . . . . . . . . . 4 . . . . . . . . . . . . . Leg 23 | . . . . . . . 1 . . . . 4 3 . 3 . 2 . 1 2 . 5 1 . 1 . Wheel 6 | . . 1 2 . 1 2 . . . . . . . . . . . . . . . . . . . . Hover . | . . . . . . . . . . . . . . . . . . . . . . . . . . . Flight 2 | . . . 1 . . . . . . . . . . . . . . . . . . . . . 1 . Utility 56 | . 4 1 5 3 . . 4 . . 1 1 . 3 1 2 6 4 . 4 3 . 8 1 1 4 . Device 35 | . 2 1 2 2 . . 1 . . 1 . . 2 1 1 4 3 . 3 3 . 5 1 1 2 . Storage 6 | . 2 . 1 . . . . . . . . . 1 . 1 1 . . . . . . . . . . Processor 6 | . . . . . . . 3 . . . . . . . . . . . . . . 2 . . 1 . Hackware . | . . . . . . . . . . . . . . . . . . . . . . . . . . . Protection 9 | . . . 2 1 . . . . . . 1 . . . . 1 1 . 1 . . 1 . . 1 . Artifact . | . . . . . . . . . . . . . . . . . . . . . . . . . . . Weapon 30 | 1 4 4 6 . 1 1 . . . 1 . . 1 . . . . . 1 . . 1 1 1 7 . Energy Gun 3 | 1 . . . . . . . . . . . . . . . . . . . . . . . . 2 . Energy Cannon 7 | . 1 2 2 . . . . . . . . . 1 . . . . . . . . . 1 . . . Ballistic Gun 4 | . 2 1 1 . . . . . . . . . . . . . . . . . . . . . . . Ballistic Cannon 1 | . 1 . . . . . . . . . . . . . . . . . . . . . . . . . Launcher 4 | . . . 1 . 1 . . . . 1 . . . . . . . . . . . . . 1 . . Special Weapon 5 | . . 1 . . . . . . . . . . . . . . . . . . . . . . 4 . Impact Weapon . | . . . . . . . . . . . . . . . . . . . . . . . . . . . Slashing Weapon 4 | . . . . . . 1 . . . . . . . . . . . . 1 . . 1 . . 1 . Piercing Weapon . | . . . . . . . . . . . . . . . . . . . . . . . . . . . Special Melee Weapon 2 | . . . 2 . . . . . . . . . . . . . . . . . . . . . . . Unidentified Prototypes 19 | . . . 4 . . . . . . 1 . . 1 . . 1 . . 3 . . . . . 9 . Corrupted Parts 1 | . . . . . . . . . . . . . . . . . . . 1 . . . . . . . System Corruption 11 | . . . . . . . . . . . . . . . . . . . 11 . . . . . . . Parts Lost 37 | . 4 4 4 . 1 . . . . . . . . . . . 2 . . 1 1 4 . . 16 . Power 3 | . . 1 1 . . . . . . . . . . . . . . . . . 1 . . . . . Propulsion 16 | . 1 3 1 . 1 . . . . . . . . . . . . . . 1 . 1 . . 8 . Utility 11 | . . . . . . . . . . . . . . . . . 2 . . . . 3 . . 6 . Weapon 7 | . 3 . 2 . . . . . . . . . . . . . . . . . . . . . 2 . Highest Loss Streak 9 | . 2 2 3 . 1 . . . . . . . . . . . 1 . . 1 1 2 . . 9 . To Critical Strikes . | . . . . . . . . . . . . . . . . . . . . . . . . . . . Average Backups 22 | 5 20 23 22 23 23 23 23 24 24 24 25 23 23 20 20 19 19 20 19 18 19 19 16 20 19 3 Power . | 1 1 . . 1 1 1 1 1 1 1 1 1 . 1 1 1 1 1 1 . 1 . . . . 1 Propulsion 5 | 3 7 7 4 3 5 7 7 7 7 7 7 4 7 5 5 5 3 3 2 1 1 1 1 1 1 . Utility 11 | . 9 11 12 15 13 12 12 12 12 13 14 14 12 11 11 10 11 12 11 9 10 10 8 8 7 2 Weapon 3 | 1 1 4 4 3 2 2 2 3 3 2 2 2 2 2 2 2 2 3 3 6 6 5 6 6 8 . Tool/Special . | . . . . . . . . . . . . . . . . . . . . . . . . . . . Unused Backups 78 | . 9 7 7 . 12 . 3 2 . . 1 . 7 . 1 3 . . 6 1 . 7 . . 11 1 Power 5 | . 2 . . . . . 1 . . . . . 1 . . . . . . . . 1 . . . . Propulsion 12 | . . 5 . . 4 . 2 . . . . . 1 . . . . . . . . . . . . . Utility 40 | . 6 . 3 . 8 . . 1 . . 1 . 4 . 1 3 . . 4 1 . 5 . . 2 1 Weapon 15 | . . 2 4 . . . . . . . . . 1 . . . . . 2 . . 1 . . 5 . Tool/Special 6 | . 1 . . . . . . 1 . . . . . . . . . . . . . . . . 4 . Average Slot Usage (%) 71 | . 94 99 61 63 61 55 59 60 60 59 59 66 60 70 70 72 74 76 76 77 69 77 77 78 69 . Engine 3 | . 10 4 7 9 9 9 . . . . . . . . . . . . . . . 1 . . . . Core 2 | . 3 9 1 . . . 5 6 6 6 6 5 4 . . . . . . . . . . . . . Reactor 2 | . . . . . . . . . . . . . . 5 5 5 5 5 5 10 8 8 10 10 7 . Treads 6 | . 28 26 8 . . . . . . . . . 8 . . . . . . . . . . . . . Leg 11 | . . . . . . . 6 6 6 6 6 26 9 29 29 26 31 35 35 30 29 30 30 31 29 . Wheel 4 | . . 1 9 18 16 10 6 6 6 6 6 . . . . . . . . . . . . . . . Device 9 | . 13 14 4 6 1 5 6 6 3 6 4 5 4 5 4 10 9 11 11 15 15 14 20 21 18 . Storage 7 | . 14 14 9 9 9 9 6 6 6 6 6 5 5 5 5 5 5 5 5 5 5 5 5 5 4 . Processor 3 | . . . . . . . 12 13 13 13 13 11 11 11 11 10 3 . . . . . . . . . Protection 2 | . . . 4 2 7 3 . . 2 . 1 . . . . 4 5 5 5 4 3 4 . . . . Energy Cannon 3 | . 3 18 7 8 1 . . . . . . . . . . . . . . . . . . . . . Ballistic Gun 1 | . 8 1 . . 7 . . . . . . . . . . . . . . . . . . . . . Slashing Weapon 3 | . . . . . . 8 6 6 6 5 5 3 4 5 5 4 5 5 5 5 3 4 5 5 4 . Special Melee Weapon 5 | . . . 9 9 9 9 6 6 6 6 6 5 5 5 5 5 5 5 5 5 5 5 5 5 4 . Peak Build Rating 183 | 6 14 22 85 84 87 92 112 113 113 113 114 122 139 128 134 151 149 139 152 169 169 166 163 166 183 3 Average Rating 101 | 5 11 15 82 83 85 91 111 112 112 111 113 120 131 127 132 145 140 139 144 164 158 162 160 163 154 3 On Entrance 105 | 6 6 14 22 83 84 86 92 112 113 113 113 113 122 127 127 134 146 139 139 152 168 141 155 163 166 3 Avg Prop Armor Cover (%) 9 | . . 14 9 . . . 11 11 10 11 10 11 7 . . 3 3 . . . . 3 . . . . Naked Turns 85 | . . . . . . . . . . . . . . . . . . . . . . . . . 12 73 Heaviest Build 185 | 11 92 98 156 156 155 155 145 145 152 145 152 145 185 113 120 124 135 129 130 144 141 151 141 148 157 . Greatest Support 162 | 40 40 40 20 29 29 37 37 28 28 28 28 136 162 129 144 144 144 135 138 148 148 156 151 151 158 3 Greatest Overweight (x) 15 | . 2 4 7 7 15 7 5 5 5 5 5 5 1 . . . 1 . . 1 1 1 . . 1 . Average Overweight (x) 2 | . 1 2 6 6 7 4 3 5 5 5 5 1 . . . . . . . . . . . . . . Largest Inventory Capacity 25 | 8 25 25 25 25 25 25 25 25 25 25 25 25 25 20 20 20 20 20 20 20 20 20 20 20 20 5 Average Capacity 22 | 8 22 25 25 25 25 25 25 25 25 25 25 25 24 20 20 20 20 20 20 20 20 20 20 20 19 5 Most Carried 25 | 6 25 25 25 25 25 25 25 25 25 25 25 25 25 20 20 20 20 20 20 20 20 20 20 20 20 4 Average Carried 22 | 4 20 24 24 24 24 24 23 24 24 24 24 23 24 20 20 19 19 20 19 19 20 19 16 19 18 4 Final Capacity 25 | 8 25 25 25 25 25 25 25 25 25 25 25 25 20 20 20 20 20 20 20 20 20 20 20 20 5 5 Final Carried 25 | 3 25 25 25 25 25 25 25 25 25 25 25 24 20 20 20 20 20 20 20 20 20 18 20 20 5 4 Class Distribution -------------------- 87% | Mutant 12% | Scavenger-Mutant Dominant Class ---------------- Mutant | -10/Materials Scavenger-Mutant | -10/Subcaves Mutant | -8/Materials Mutant | -8/Garrison Mutant | -8/Materials Mutant | -8/Garrison Mutant | -7/Factory Mutant | -7/Lower Caves Mutant | -7/Lower Caves Mutant | -7/Zion Mutant | -6/Proximity Caves Mutant | -6/Factory Mutant | -6/Garrison Mutant | -6/Factory Mutant | -6/DSF Mutant | -5/Factory Mutant | -5/Garrison Mutant | -5/Factory Mutant | -5/DSF Mutant | -4/Factory Mutant | -4/Waste Mutant | -4/Factory Mutant | -4/Upper Caves Mutant | -4/Upper Caves Mutant | -4/Warlord Mutant | -3/Proximity Caves Resources | -11 -10 -10 -8 -8 -8 -8 -7 -7 -7 -7 -6 -6 -6 -6 -6 -5 -5 -5 -5 -4 -4 -4 -4 -4 -4 -3 ----------- Run | Yrd Mat Sub Mat Gar Mat Gar Fac Low Low Zio Pro Fac Gar Fac DSF Fac Gar Fac DSF Fac Was Fac Upp Upp War Pro Matter Collected 24299 | 224 1099 224 651 1855 1743 2588 674 486 834 40 562 60 1739 . 243 2125 4106 . 130 1297 . 2259 241 739 380 . Remotely 4352 | . . . 233 836 216 556 122 . 207 . . . 286 . 213 55 897 . . 518 . 213 . . . . Salvage Created 8277 | 70 928 634 749 15 312 364 192 171 . . 51 . 1404 . 69 745 442 . 172 341 . 1207 . 321 90 . Parts 306 | 2 55 39 34 2 15 12 3 5 . . 1 . 33 . . 28 10 . 5 15 . 44 . 3 . . Haulers Intercepted 16 | . 2 . 5 . 4 . . . . . . . . . . 1 . . 1 2 . 1 . . . . Recyclers Shooed 6 | 1 3 . . . . . . . . . . . . . . 1 . . . 1 . . . . . . Parts Field Recycled . | . . . . . . . . . . . . . . . . . . . . . . . . . . . Retrieved Matter . | . . . . . . . . . . . . . . . . . . . . . . . . . . . Parts Self-Destructed 45 | . . 6 . . . . . 2 7 2 23 . . . . . . . . . . . . 5 . . Prevented 8 | . . . . . . . . . . . 5 . . . . . . . . . . . . 3 . . Parts Restored . | . . . . . . . . . . . . . . . . . . . . . . . . . . . Kills | -11 -10 -10 -8 -8 -8 -8 -7 -7 -7 -7 -6 -6 -6 -6 -6 -5 -5 -5 -5 -4 -4 -4 -4 -4 -4 -3 ------- Run | Yrd Mat Sub Mat Gar Mat Gar Fac Low Low Zio Pro Fac Gar Fac DSF Fac Gar Fac DSF Fac Was Fac Upp Upp War Pro Combat Hostiles Destroyed 60 | . 15 10 4 2 1 3 . . . . 2 . 2 . . . 3 . 1 . . 7 . . 10 . Melee 12 | . . . . . . . . . . . 1 . . . . . 3 . 1 . . 7 . . . . Guns 14 | . 11 1 . . 1 . . . . . 1 . . . . . . . . . . . . . . . Cannons 16 | . 4 9 2 . . . . . . . . . . . . . . . . . . . . . 1 . AOE 18 | . . . 2 2 . 3 . . . . . . 2 . . . . . . . . . . . 9 . Classes Destroyed 21 | 1 6 3 1 1 . 1 . 1 . . 2 . . . . . . . . . . 1 . . 4 . Worker 3 | . 1 . . . . . . . . . . . . . . 1 . . . . . 1 . . . . Builder 6 | . 3 . 1 . 1 . . . . . . . . . . . . . . . . 1 . . . . Hauler 16 | . 2 . 5 . 4 . . . . . . . . . . 1 . . 1 2 . 1 . . . . Recycler 23 | 1 2 . 4 . 1 . 2 . . . . . . . . 5 . . . 1 . 7 . . . . Minesweeper 1 | . . . . . . . . . . . 1 . . . . . . . . . . . . . . . Operator 5 | . 3 . 1 . . . . . . . . . . . . 1 . . . . . . . . . . Drone 2 | . . . . . . . . . . . 2 . . . . . . . . . . . . . . . Watcher 2 | . 2 . . . . . . . . . . . . . . . . . . . . . . . . . Swarmer 11 | . . . . 2 1 . . . . . . . 1 . . . . . 1 . . 6 . . . . Saboteur 3 | . . . . . . 3 . . . . . . . . . . . . . . . . . . . . Grunt 23 | . 15 . 2 . . . . . . . . . 1 . . . 3 . . . . . . . 2 . Brawler 1 | . . . . . . . . . . . . . . . . . . . . . . . . . 1 . Duelist 1 | . . . . . . . . . . . . . . . . . . . . . . . . . 1 . Sentry 1 | . . 1 . . . . . . . . . . . . . . . . . . . . . . . . Specialist 3 | . . . 2 . . . . . . . . . . . . . . . . . . . . . 1 . Hunter 3 | . . . . . . . . . . . . . . . . . . . . . . 1 . . 2 . Executioner 1 | . . . . . . . . . . . . . . . . . . . . . . . . . 1 . Artisan 1 | . . 1 . . . . . . . . . . . . . . . . . . . . . . . . Subdweller 9 | . . 9 . . . . . . . . . . . . . . . . . . . . . . . . Samaritan 3 | . . . . . . . . 3 . . . . . . . . . . . . . . . . . . Mutant 1 | . . . . . . . . . . . . . . . . . . . . . . . . . 1 . Best Kill Streak 8 | 1 3 2 4 2 1 3 1 . . . 1 . 2 . . 2 2 . 1 1 . 4 . . 8 . Combat Bots Only 8 | . 3 2 4 2 1 3 . . . . 1 . 2 . . . 2 . 1 . . 3 . . 8 . Max Kills in Single Turn 4 | 1 1 1 1 1 1 3 1 1 . . 1 . 1 . . 1 1 . 1 1 . 1 . . 4 . Gunslinging . | . . . . . . . . . . . . . . . . . . . . . . . . . . . Exploded 4 | . . . 1 1 . 3 . . . . . . 1 . . . . . . . . . . . 4 . Melee 1 | . . . . . . . . . . . 1 . . . . . 1 . 1 . . 1 . . . . Uniques/NPCs Destroyed 1 | . . . . . . . . . . . . . . . . . . . . . . . . . 1 . LV-01A (-4/Warlord) Combat | -11 -10 -10 -8 -8 -8 -8 -7 -7 -7 -7 -6 -6 -6 -6 -6 -5 -5 -5 -5 -4 -4 -4 -4 -4 -4 -3 -------- Run | Yrd Mat Sub Mat Gar Mat Gar Fac Low Low Zio Pro Fac Gar Fac DSF Fac Gar Fac DSF Fac Was Fac Upp Upp War Pro Hostile Shots Fired 1053 | . 69 56 58 16 34 16 26 10 23 . 20 . 85 . 2 31 53 . 7 130 2 196 . . 217 2 Missed 473 | . 15 17 14 6 9 6 10 7 5 . 5 . 24 . 1 20 18 . 4 80 . 121 . . 111 . Hits 580 | . 54 39 44 10 25 10 16 3 18 . 15 . 61 . 1 11 35 . 3 50 2 75 . . 106 2 Melee 15 | . . . . . 2 . . . . . . . . . . . . . . . 2 1 . . 10 . Projectile 565 | . 54 39 44 10 23 10 16 3 18 . 15 . 61 . 1 11 35 . 3 50 . 74 . . 96 2 AOE 35 | . . . . . . . . . . . . . 1 . . . . . . 4 . 7 . . 23 . Critical Strikes 28 | . 1 1 2 . 2 . . . . . 2 . 1 . . 1 3 . . 1 2 4 . . 8 . Actively Blocked 8 | . . . . . . . . . . . . . . . . . . . . . 2 . . . 6 . Part Disruptions 2 | . . . . . . . . . . . . . . . . . . . . . . 1 . . 1 . Damage Taken 12534 | . 689 823 973 201 392 280 173 30 482 . 292 . 805 . 47 484 777 . 51 1128 90 1567 . . 3207 43 Core 2537 | . 66 135 196 82 45 87 50 . 99 . 109 . 124 . . 184 160 . 34 151 . 255 . . 717 43 Absorbed by Shields 1043 | . . . . . . . . . . . . . . . . . 107 . 4 78 . 449 . . 405 . Redirected to Shielding 109 | . . . . . . . . . . . . . . . . . . . . . . . . . 109 . Regen/Repaired (Parts) 2374 | . . . 342 80 98 121 57 9 91 7 39 . 192 . . 118 124 . . 344 . 484 170 . 98 . Core Remaining (%) 59 | 100 . 19 . . . 25 . . . . 63 . . . 85 . . . 62 . . . . . . . Volleys Fired 315 | 4 93 99 22 16 48 1 . . . . 5 . 9 . . 1 . . . . . . 1 . 16 . Largest 2 | 2 2 2 1 1 1 1 . . . . 1 . 1 . . 1 . . . . . . 1 . 1 . Hottest 140 | 60 90 140 80 80 80 39 . . . . 25 . 113 . . 113 . . . . . . 113 . 113 . Shots Fired 403 | 8 152 125 22 16 47 1 . . . . 5 . 9 . . 1 . . . . . . 1 . 16 . Gun 174 | 8 110 8 . . 43 . . . . . 5 . . . . . . . . . . . . . . . Cannon 177 | . 42 88 19 14 4 . . . . . . . 7 . . 1 . . . . . . 1 . 1 . Launcher 8 | . . . 3 2 . 1 . . . . . . 2 . . . . . . . . . . . . . Special 44 | . . 29 . . . . . . . . . . . . . . . . . . . . . . 15 . Kinetic 173 | 4 101 20 . . 43 . . . . . 5 . . . . . . . . . . . . . . . Thermal 201 | 4 51 105 13 14 4 . . . . . . . 7 . . 1 . . . . . . 1 . 1 . Explosive 23 | . . . 3 2 . 1 . . . . . . 2 . . . . . . . . . . . 15 . Electromagnetic 6 | . . . 6 . . . . . . . . . . . . . . . . . . . . . . . Robot Hit Streak 30 | 4 14 30 24 . 8 . . . . . 1 . . . . . . . . . . . . . 6 . Robot Miss Streak 4 | 1 4 1 2 . 2 3 . . . . 3 . . . . . . . . . . . . . 2 . Penetration Max . | . . . . . . . . . . . . . . . . . . . . . . . . . . . Secondary Targets . | . . . . . . . . . . . . . . . . . . . . . . . . . . . Shots Hit Robots 428 | 7 109 74 19 . 27 22 2 8 . . 4 1 56 . . 18 27 . 2 8 . 28 . 11 5 . Core Hits 211 | 2 51 23 15 4 8 13 . 1 . . 3 . 24 . . 8 11 . 2 3 . 17 . 4 22 . Critical Kills 1 | . 1 . . . . . . . . . . . . . . . . . . . . . . . . . Critical Parts Destroyed . | . . . . . . . . . . . . . . . . . . . . . . . . . . . Critical Strikes 18 | . 5 1 . . . . . . . . . . 3 . . 1 3 . . 1 . 1 . . 3 . Burn 3 | . 3 . . . . . . . . . . . . . . . . . . . . . . . . . Destroy 1 | . 1 . . . . . . . . . . . . . . . . . . . . . . . . . Blast 2 | . 1 1 . . . . . . . . . . . . . . . . . . . . . . . . Sever 12 | . . . . . . . . . . . . . 3 . . 1 3 . . 1 . 1 . . 3 . Melee Attacks 471 | . . . 2 . . 91 10 10 7 . 14 1 90 . 3 33 111 . 5 15 . 48 4 13 14 . Impact . | . . . . . . . . . . . . . . . . . . . . . . . . . . . Slashing 469 | . . . . . . 91 10 10 7 . 14 1 90 . 3 33 111 . 5 15 . 48 4 13 14 . Piercing . | . . . . . . . . . . . . . . . . . . . . . . . . . . . Sneak Attacks 45 | . . . 2 . . . 2 8 . . 1 1 . . . 11 . . 1 4 . 15 . . . . Combat Hostiles . | . . . . . . . . . . . . . . . . . . . . . . . . . . . Follow-up Attacks . | . . . . . . . . . . . . . . . . . . . . . . . . . . . Damage Inflicted 19059 | 68 1401 1454 783 117 513 1281 158 536 . . 159 67 3932 . . 1045 1419 . 101 479 . 1762 . 681 3103 . Guns 1557 | 68 888 107 . . 459 . . . . . 35 . . . . . . . . . . . . . . . Cannons 2330 | . 465 1347 464 . 54 . . . . . . . . . . . . . . . . . . . . . Explosions 3277 | . . . 319 117 . 150 . . . . . . 143 . . . . . . . . . . . 2548 . Melee 11292 | . . . . . . 1131 158 536 . . 124 67 3789 . . 1045 1419 . 101 479 . 1762 . 681 . . Ramming 73 | . 48 . . . . . . . . . . . . . . . . . . . . . . . 25 . Kinetic 1669 | 24 991 160 . . 459 . . . . . 35 . . . . . . . . . . . . . . . Thermal 2057 | 44 362 1294 303 . 54 . . . . . . . . . . . . . . . . . . . . . Explosive 3277 | . . . 319 117 . 150 . . . . . . 143 . . . . . . . . . . . 2548 . Electromagnetic 161 | . . . 161 . . . . . . . . . . . . . . . . . . . . . . . Impact . | . . . . . . . . . . . . . . . . . . . . . . . . . . . Slashing 11822 | . . . . . . 1131 158 536 . . 124 67 3789 . . 1045 1419 . 101 479 . 1762 . 681 530 . Piercing . | . . . . . . . . . . . . . . . . . . . . . . . . . . . Highest Corruption 13 | . . . . . . . . . . . . . . . . 2 2 2 13 1 1 1 . . 10 10 Average Corruption 2 | . . . . . . . . . . . . . . . . 1 2 2 7 1 1 1 . . 1 10 Corruption Purged 1 | . . . . . . . . . . . . . . . . . . . . . . 1 . . . . Corruption Blocked . | . . . . . . . . . . . . . . . . . . . . . . . . . . . Effects 58 | . . . . . . . . . . . . . . . . 16 24 . 7 3 1 2 . . 3 2 Message Errors 17 | . . . . . . . . . . . . . . . . 4 9 . 1 1 . . . . 1 1 Matter Fused 11 | . . . . . . . . . . . . . . . . 3 4 . 3 . . . . . . 1 Heat Flow Errors 4 | . . . . . . . . . . . . . . . . 2 2 . . . . . . . . . Energy Discharges 11 | . . . . . . . . . . . . . . . . 3 4 . 1 . . 1 . . 2 . Data Loss (minor) 11 | . . . . . . . . . . . . . . . . 3 3 . 2 2 . 1 . . . . Data Loss (major) 2 | . . . . . . . . . . . . . . . . . 1 . . . 1 . . . . . Alerts 2 | . . . . . . . . . . . . . . . . 1 1 . . . . . . . . . Overload Shots . | . . . . . . . . . . . . . . . . . . . . . . . . . . . Overflow Damage 1068 | . 4 . . 24 . . 103 306 . . . 27 81 . . 103 58 . . 45 . 125 . 104 88 . Projectiles 46 | . 4 . . . . . . . . . . . . . . . . . . . . . . . 42 . Explosions 70 | . . . . 24 . . . . . . . . . . . . . . . . . . . . 46 . Melee 952 | . . . . . . . 103 306 . . . 27 81 . . 103 58 . . 45 . 125 . 104 . . Knockbacks 8 | . 8 . . . . . . . . . . . . . . . . . . . . . . . . . Impact 1 | . 1 . . . . . . . . . . . . . . . . . . . . . . . . . Kinetic 7 | . 7 . . . . . . . . . . . . . . . . . . . . . . . . . Secondary . | . . . . . . . . . . . . . . . . . . . . . . . . . . . Self-Inflicted Damage 11 | . . . . 11 . . . . . . . . . . . . . . . . . . . . . . Shots 1 | . . . . 1 . . . . . . . . . . . . . . . . . . . . . . Rammed 8 | . 8 . . . . . . . . . . . . . . . . . . . . . . . . . Targets Rammed 12 | . 8 . . . . . . . . . . . . . . . . . . . . . . . 4 . Kicked 4 | . . . . . . . . . . . . . . . . . . . . . . . . . 4 . Crushed . | . . . . . . . . . . . . . . . . . . . . . . . . . . . Highest Temperature 463 | 40 104 7 283 60 120 . . . . . . . 268 . 28 463 212 . 39 4 . 12 62 . 171 . Average Temperature 57 | 25 30 3 76 21 18 . . . . . . . 127 . 15 155 96 . 24 4 . 9 35 . 59 . Received Heat Transfer 1795 | . 411 183 198 45 117 81 39 6 75 . 36 . 87 . . 27 191 . . 30 . 190 . . 79 . Effects 1 | . . . . . . . . . . . . . 1 . . . . . . . . . . . . . Energy Bleed 1 | . . . . . . . . . . . . . 1 . . . . . . . . . . . . . Siege Activations . | . . . . . . . . . . . . . . . . . . . . . . . . . . . Martial Activations . | . . . . . . . . . . . . . . . . . . . . . . . . . . . Shielding Activations . | . . . . . . . . . . . . . . . . . . . . . . . . . . . Robots Disrupted . | . . . . . . . . . . . . . . . . . . . . . . . . . . . Combat Hostiles . | . . . . . . . . . . . . . . . . . . . . . . . . . . . Robots Corrupted . | . . . . . . . . . . . . . . . . . . . . . . . . . . . Combat Hostiles . | . . . . . . . . . . . . . . . . . . . . . . . . . . . Parts Fried 2 | . . . 2 . . . . . . . . . . . . . . . . . . . . . . . Impact Corruptions . | . . . . . . . . . . . . . . . . . . . . . . . . . . . Robots Melted . | . . . . . . . . . . . . . . . . . . . . . . . . . . . Combat Hostiles . | . . . . . . . . . . . . . . . . . . . . . . . . . . . Parts Melted 4 | . 1 3 . . . . . . . . . . . . . . . . . . . . . . . . Heat Transferred 4096 | 100 1221 2294 407 . 74 . . . . . . . . . . . . . . . . . . . . . Parts Sabotaged 5 | . . . . . . . . . . . . . . . . . . . . . . 4 . . 1 . Parts Stolen . | . . . . . . . . . . . . . . . . . . . . . . . . . . . Parts Stripped . | . . . . . . . . . . . . . . . . . . . . . . . . . . . Power Chain Reactions . | . . . . . . . . . . . . . . . . . . . . . . . . . . . Alert | -11 -10 -10 -8 -8 -8 -8 -7 -7 -7 -7 -6 -6 -6 -6 -6 -5 -5 -5 -5 -4 -4 -4 -4 -4 -4 -3 ------- Run | Yrd Mat Sub Mat Gar Mat Gar Fac Low Low Zio Pro Fac Gar Fac DSF Fac Gar Fac DSF Fac Was Fac Upp Upp War Pro Maximum Alert Level 5 | . . . 1 4 3 5 3 . . . . 2 5 3 3 2 5 3 3 2 . 4 . . . . Low Security (%) 25 | 100 100 . 63 . . . . . . . . . . . . . . . . . 100 76 . . . . Level 1 11 | . . . 36 5 . . . . . . . . . . . 76 13 . . 1 . 1 . . . . Level 2 22 | . . . . 15 98 13 . . . . . 100 19 . 11 23 3 . 12 98 . 7 . . . . Level 3 23 | . . . . 73 1 31 100 . . . . . 24 100 88 . 47 100 87 . . 5 . . . . Level 4 14 | . . . . 6 . 46 . . . . . . 48 . . . 23 . . . . 9 . . . . Level 5 3 | . . . . . . 8 . . . . . . 7 . . . 12 . . . . . . . . . High Security . | . . . . . . . . . . . . . . . . . . . . . . . . . . . Max Security . | . . . . . . . . . . . . . . . . . . . . . . . . . . . Sterilizations 2 | . . . . . . . . . . . . . . . 1 . . . 1 . . . . . . . Peak Influence 1780 | 5 84 . 398 1113 746 1721 1058 . . . . 640 1718 901 943 494 1780 934 1041 650 144 1286 . . . . Initial 934 | . . . . 234 542 451 903 . . . . 450 405 901 634 494 252 934 646 546 144 58 . . . . Average 634 | 1 23 . 151 849 603 1151 950 . . . . 577 1066 901 874 360 1044 931 905 529 115 241 . . . . Influence Increases 13830 | 5 527 20 874 959 900 1490 431 85 172 . 263 719 1473 5 309 735 1888 . 455 359 . 1825 . 16 320 . Destroy 0b10 Robot/C 6060 | . 300 20 360 500 480 500 260 60 120 . 140 120 440 . 160 380 840 . 220 160 . 820 . . 180 . Destroy 0b10 Robot/NC 525 | 5 65 . 90 5 60 25 10 . . . 15 5 65 . . 55 15 . 5 25 . 65 . 15 . . Destroy Leader 950 | . 68 . 100 20 138 40 50 10 20 . 30 40 70 . 20 78 60 . 40 24 . 142 . . . . Allied During Kill 1691 | . . . 58 120 140 109 57 15 32 . 63 55 70 . 84 92 271 . 161 64 . 294 . 1 5 . Successful Hack 288 | . 28 . 55 35 18 . . . . . . 24 14 5 . 76 . . . 30 . 3 . . . . Disable Machine 465 | . . . 60 15 45 45 30 . . . . . 30 . 45 15 45 . 15 . . 120 . . . . Anti-Garrison Action 2000 | . . . . 200 . 650 . . . . . . 550 . . . 450 . . . . 150 . . . . Destroy Structure 806 | . 6 . 36 64 4 106 24 . . . . 25 144 . . 24 177 . 14 26 . 156 . . . . Advance Influence 450 | . . . . . . . . . . . . 450 . . . . . . . . . . . . . . Lose Combat Pursuer 495 | . 60 . 15 . 15 15 . . . . 15 . 90 . . 15 30 . . 30 . 75 . . 135 . Active Sensor Use 100 | . . . 100 . . . . . . . . . . . . . . . . . . . . . . . Influence Decreases 13830 | 5 519 28 513 207 1319 463 1148 691 330 240 263 140 334 817 272 1317 469 856 338 987 329 681 661 470 335 98 Entered New Map 6961 | . . 4 . 127 571 243 818 373 76 240 . . 174 817 272 449 109 846 278 495 269 26 455 108 113 98 Time Decay 4743 | 5 499 24 439 . 538 . 270 318 214 . 263 140 . . . 518 . 10 . 302 50 497 206 362 88 . Lost Part 240 | . 20 . 20 . 10 . . . . . . . . . . . 20 . . 10 10 40 . . 110 . Lost Ally 1736 | . . . 54 80 200 220 60 . 40 . . . 160 . . 200 340 . 60 180 . 118 . . 24 . Purge Threat 150 | . . . . . . . . . . . . . . . . 150 . . . . . . . . . . Squads Dispatched 41 | . 4 . 4 . 5 . 2 . . . . 4 . . 1 4 . . 2 3 . 12 . . . . Investigation 7 | . 1 . 1 . . . . . . . . 1 . . . 1 . . . . . 3 . . . . Extermination 7 | . . . . . . . . . . . . . . . . 2 . . . 2 . 3 . . . . Reinforcement 16 | . 3 . 3 . 4 . 2 . . . . . . . 1 . . . 2 . . 1 . . . . Assault 6 | . . . . . . . . . . . . . . . . 1 . . . 1 . 4 . . . . Garrison 5 | . . . . . 1 . . . . . . 3 . . . . . . . . . 1 . . . . Intercept . | . . . . . . . . . . . . . . . . . . . . . . . . . . . Searches Triggered . | . . . . . . . . . . . . . . . . . . . . . . . . . . . Construction Impeded 1 | . . . . . . . . . . . . . . . . . . . . . . 1 . . . . Haulers Reinforced . | . . . . . . . . . . . . . . . . . . . . . . . . . . . Active Scanning Responses 2 | . . . 1 1 . . . . . . . . . . . . . . . . . . . . . . Cargo Convoy Interrupts . | . . . . . . . . . . . . . . . . . . . . . . . . . . . Stealth | -11 -10 -10 -8 -8 -8 -8 -7 -7 -7 -7 -6 -6 -6 -6 -6 -5 -5 -5 -5 -4 -4 -4 -4 -4 -4 -3 --------- Run | Yrd Mat Sub Mat Gar Mat Gar Fac Low Low Zio Pro Fac Gar Fac DSF Fac Gar Fac DSF Fac Was Fac Upp Upp War Pro Distress Signals 19 | . 4 . 4 . 3 2 1 . . . . . . . . 1 . . . 1 . 1 . . 2 . Communications Jammed 2 | . . . . . . . . . . . . . . . . 2 . . . . . . . . . . Distress Signals 1 | . . . . . . . . . . . . . . . . 1 . . . . . . . . . . Times Spotted 458 | . 31 10 32 26 32 32 11 4 5 . 12 7 22 . 1 32 47 . 8 30 6 54 . . 55 1 Peak Tracking Total 25 | . 4 2 6 4 5 5 4 3 3 . 5 4 5 . 1 5 10 1 4 9 6 8 . . 25 1 Tactical Retreats 26 | . 3 . 1 . 1 1 . . . . 1 . 5 . . 1 2 . . 2 . 3 . . 6 . Traps | -11 -10 -10 -8 -8 -8 -8 -7 -7 -7 -7 -6 -6 -6 -6 -6 -5 -5 -5 -5 -4 -4 -4 -4 -4 -4 -3 ------- Run | Yrd Mat Sub Mat Gar Mat Gar Fac Low Low Zio Pro Fac Gar Fac DSF Fac Gar Fac DSF Fac Was Fac Upp Upp War Pro Traps Triggered 19 | . 1 . . 3 . 5 1 . . . . . 1 . 1 1 3 . . 1 . 1 . . 1 . Indirectly . | . . . . . . . . . . . . . . . . . . . . . . . . . . . Trap Hack Attempts . | . . . . . . . . . . . . . . . . . . . . . . . . . . . Triggered . | . . . . . . . . . . . . . . . . . . . . . . . . . . . Disarmed . | . . . . . . . . . . . . . . . . . . . . . . . . . . . Reprogrammed . | . . . . . . . . . . . . . . . . . . . . . . . . . . . Reused . | . . . . . . . . . . . . . . . . . . . . . . . . . . . Traps Extracted . | . . . . . . . . . . . . . . . . . . . . . . . . . . . Installed . | . . . . . . . . . . . . . . . . . . . . . . . . . . . Triggered . | . . . . . . . . . . . . . . . . . . . . . . . . . . . Machines | -11 -10 -10 -8 -8 -8 -8 -7 -7 -7 -7 -6 -6 -6 -6 -6 -5 -5 -5 -5 -4 -4 -4 -4 -4 -4 -3 ---------- Run | Yrd Mat Sub Mat Gar Mat Gar Fac Low Low Zio Pro Fac Gar Fac DSF Fac Gar Fac DSF Fac Was Fac Upp Upp War Pro Machines Disabled 60 | . . 1 4 5 3 12 2 . . . . . 9 . 3 1 8 . 2 . . 9 . . 1 . Max in Single Turn 1 | . . 1 . 1 1 1 1 . . . . . 1 . 1 . 1 . 1 . . 1 . . 1 . Garrison Access 1 | . . . . . . . . . . . . . . . . . . . . . . 1 . . . . Garrison Relay 23 | . . . . 4 . 7 . . . . . . 7 . . . 5 . . . . . . . . . Machines Repaired . | . . . . . . . . . . . . . . . . . . . . . . . . . . . Machines Dismantled . | . . . . . . . . . . . . . . . . . . . . . . . . . . . Machines Sabotaged . | . . . . . . . . . . . . . . . . . . . . . . . . . . . Overloaded Fab Kills . | . . . . . . . . . . . . . . . . . . . . . . . . . . . Hacking | -11 -10 -10 -8 -8 -8 -8 -7 -7 -7 -7 -6 -6 -6 -6 -6 -5 -5 -5 -5 -4 -4 -4 -4 -4 -4 -3 --------- Run | Yrd Mat Sub Mat Gar Mat Gar Fac Low Low Zio Pro Fac Gar Fac DSF Fac Gar Fac DSF Fac Was Fac Upp Upp War Pro Machines Accessed 77 | . 7 3 12 3 10 2 3 . . . . 3 1 1 . 12 2 1 . 4 . 8 1 . 4 . Terminals 41 | . 5 . 8 3 6 2 2 . . . . . 1 1 . 6 2 1 . 1 . 3 . . . . Fabricators 3 | . . . . . . . . . . . . . . . . 1 . . . 1 . 1 . . . . Repair Stations 3 | . . . . . . . . . . . . . . . . 2 . . . 1 . . . . . . Recycling Units 10 | . 2 . 2 . 1 . 1 . . . . . . . . 1 . . . 1 . 2 . . . . Scanalyzers 6 | . . . 1 . 2 . . . . . . 1 . . . 1 . . . . . 1 . . . . Garrison Access 6 | . . . 1 . 1 . . . . . . 2 . . . 1 . . . . . 1 . . . . Total Hacks 183 | . 14 6 36 4 29 3 5 . . . . 7 1 3 . 26 3 2 . 13 . 18 1 . 12 . Successful 90 | . 5 6 21 3 14 . . . . . . 2 1 1 . 12 . 1 . 9 . 2 1 . 12 . Failed 92 | . 9 . 15 1 15 3 5 . . . . 5 . 2 . 13 3 1 . 4 . 16 . . . . Catastrophic 22 | . 3 . 2 . 2 2 2 . . . . 3 . . . 2 1 . . 1 . 4 . . . . Database Lockouts 1 | . . . . . . . . . . . . . . . . 1 . . . . . . . . . . Manual 60 | . 3 . 17 . 15 . 4 . . . . . . . . 11 . . . 6 . 4 . . . . Terminals 97 | . 9 . 22 4 22 3 3 . . . . . 1 3 . 16 3 2 . 3 . 6 . . . . Fabricators 5 | . . . . . . . . . . . . . . . . 2 . . . 2 . 1 . . . . Repair Stations 5 | . . . . . . . . . . . . . . . . 3 . . . 2 . . . . . . Recycling Units 29 | . 5 . 6 . 2 . 2 . . . . . . . . 2 . . . 6 . 6 . . . . Scanalyzers 17 | . . . 7 . 4 . . . . . . 2 . . . 2 . . . . . 2 . . . . Garrison Access 11 | . . . 1 . 1 . . . . . . 5 . . . 1 . . . . . 3 . . . . Terminal Hacks 43 | . 2 6 7 3 5 . . . . . . . 1 1 . 4 . 1 . . . . 1 . 12 . Record 15 | . . 4 . . . . . . . . . . . . . . . . . . . . . . 11 . Robot Analysis 1 | . 1 . . . . . . . . . . . . . . . . . . . . . . . . . Prototype ID Bank 5 | . 1 . 1 . 3 . . . . . . . . . . . . . . . . . . . . . Open Door 4 | . . 1 . 1 . . . . . . . . . . . . . . . . . . 1 . 1 . Open DSF 2 | . . . . . . . . . . . . . . 1 . . . 1 . . . . . . . . Branch Access Points 1 | . . . 1 . . . . . . . . . . . . . . . . . . . . . . . Emergency Access Points 2 | . . . . 1 . . . . . . . . 1 . . . . . . . . . . . . . Terminal Index 1 | . . . 1 . . . . . . . . . . . . . . . . . . . . . . . Garrison Index 3 | . . . 1 . 1 . . . . . . . . . . 1 . . . . . . . . . . Unreport Threat 1 | . . . . . . . . . . . . . . . . 1 . . . . . . . . . . Locate Traps 4 | . . . 2 . 1 . . . . . . . . . . 1 . . . . . . . . . . Maintenance Status 1 | . . . . . . . . . . . . . . . . 1 . . . . . . . . . . Hauler Manifests 1 | . . . 1 . . . . . . . . . . . . . . . . . . . . . . . Garrison Registry 1 | . . . . 1 . . . . . . . . . . . . . . . . . . . . . . Proto ID Catalog 1 | . . 1 . . . . . . . . . . . . . . . . . . . . . . . . Fabricator Hacks 2 | . . . . . . . . . . . . . . . . 1 . . . 1 . . . . . . Network Status 2 | . . . . . . . . . . . . . . . . 1 . . . 1 . . . . . . Repair Station Hacks 2 | . . . . . . . . . . . . . . . . . . . . 2 . . . . . . Scan Component 1 | . . . . . . . . . . . . . . . . . . . . 1 . . . . . . Repair 1 | . . . . . . . . . . . . . . . . . . . . 1 . . . . . . Recycling Unit Hacks 7 | . 2 . 1 . 1 . . . . . . . . . . 1 . . . 1 . 1 . . . . Report Inventory 1 | . . . . . . . . . . . . . . . . . . . . . . 1 . . . . Retrieve Components 6 | . 2 . 1 . 1 . . . . . . . . . . 1 . . . 1 . . . . . . Scanalyzer 12 | . . . 6 . 4 . . . . . . 1 . . . 1 . . . . . . . . . . Insert Component 3 | . . . 2 . 1 . . . . . . . . . . . . . . . . . . . . . Analyze 2 | . . . 2 . . . . . . . . . . . . . . . . . . . . . . . Retrieve Study 7 | . . . 2 . 3 . . . . . . 1 . . . 1 . . . . . . . . . . Garrison Access Hacks 4 | . . . 1 . 1 . . . . . . 1 . . . 1 . . . . . . . . . . Unlock Access 4 | . . . 1 . 1 . . . . . . 1 . . . 1 . . . . . . . . . . Unauthorized Hacks 20 | . 1 . 6 . 3 . . . . . . . . . . 4 . . . 5 . 1 . . . . Terminals 7 | . . . 3 . 2 . . . . . . . . . . 2 . . . . . . . . . . Assimilate 1 | . . . 1 . . . . . . . . . . . . . . . . . . . . . . . Botnet 5 | . . . 1 . 2 . . . . . . . . . . 2 . . . . . . . . . . Operators 1 | . . . 1 . . . . . . . . . . . . . . . . . . . . . . . Fabricators 1 | . . . . . . . . . . . . . . . . . . . . 1 . . . . . . Haulers 1 | . . . . . . . . . . . . . . . . . . . . 1 . . . . . . Repair Stations 1 | . . . . . . . . . . . . . . . . 1 . . . . . . . . . . Mechanics 1 | . . . . . . . . . . . . . . . . 1 . . . . . . . . . . Recycling Units 11 | . 1 . 3 . 1 . . . . . . . . . . 1 . . . 4 . 1 . . . . Monitor 1 | . . . . . . . . . . . . . . . . . . . . 1 . . . . . . Reject 6 | . 1 . 2 . 1 . . . . . . . . . . . . . . 1 . 1 . . . . Recyclers 3 | . . . 1 . . . . . . . . . . . . 1 . . . 1 . . . . . . Mask 1 | . . . . . . . . . . . . . . . . . . . . 1 . . . . . . Scanalyzers . | . . . . . . . . . . . . . . . . . . . . . . . . . . . Garrison Access . | . . . . . . . . . . . . . . . . . . . . . . . . . . . Data Cores Recovered 1 | . . . . . . . . . . . . . . . . 1 . . . . . . . . . . Used . | . . . . . . . . . . . . . . . . . . . . . . . . . . . Hacking Detections 62 | . 7 . 10 3 8 2 3 . . . . 3 1 1 . 9 2 1 . 4 . 8 . . . . Full Trace Events 3 | . . . . . . . . . . . . 1 . . . . . . . . . 2 . . . . Feedback Events . | . . . . . . . . . . . . . . . . . . . . . . . . . . . Feedback Blocked . | . . . . . . . . . . . . . . . . . . . . . . . . . . . Robot Schematics Acquired . | . . . . . . . . . . . . . . . . . . . . . . . . . . . Robots Built . | . . . . . . . . . . . . . . . . . . . . . . . . . . . Authchips . | . . . . . . . . . . . . . . . . . . . . . . . . . . . Time . | . . . . . . . . . . . . . . . . . . . . . . . . . . . Total Robot Build Rating . | . . . . . . . . . . . . . . . . . . . . . . . . . . . Part Schematics Acquired 2 | . . . 2 . . . . . . . . . . . . . . . . . . . . . . . Parts Built . | . . . . . . . . . . . . . . . . . . . . . . . . . . . Authchips . | . . . . . . . . . . . . . . . . . . . . . . . . . . . Time . | . . . . . . . . . . . . . . . . . . . . . . . . . . . Total Part Build Rating . | . . . . . . . . . . . . . . . . . . . . . . . . . . . Part Studies Acquired 7 | . . . 2 . 3 . . . . . . 1 . . . 1 . . . . . . . . . . Parts Repaired 1 | . . . . . . . . . . . . . . . . . . . . 1 . . . . . . Time 56 | . . . . . . . . . . . . . . . . . . . . 56 . . . . . . Parts Recycled . | . . . . . . . . . . . . . . . . . . . . . . . . . . . Recycled Matter . | . . . . . . . . . . . . . . . . . . . . . . . . . . . Retrieved Matter . | . . . . . . . . . . . . . . . . . . . . . . . . . . . Retrieved Components 38 | . 19 . 2 . 4 . . . . . . . . . . 3 . . . 10 . . . . . . Parts Scanalyzed 2 | . . . 2 . . . . . . . . . . . . . . . . . . . . . . . Part Schematics Acquired 2 | . . . 2 . . . . . . . . . . . . . . . . . . . . . . . Parts Damaged . | . . . . . . . . . . . . . . . . . . . . . . . . . . . Bothacking | -11 -10 -10 -8 -8 -8 -8 -7 -7 -7 -7 -6 -6 -6 -6 -6 -5 -5 -5 -5 -4 -4 -4 -4 -4 -4 -3 ------------ Run | Yrd Mat Sub Mat Gar Mat Gar Fac Low Low Zio Pro Fac Gar Fac DSF Fac Gar Fac DSF Fac Was Fac Upp Upp War Pro Used RIF Installer . | . . . . . . . . . . . . . . . . . . . . . . . . . . . Robots Hacked 2 | . . . 2 . . . . . . . . . . . . . . . . . . . . . . . Non-combat . | . . . . . . . . . . . . . . . . . . . . . . . . . . . Combat 2 | . . . 2 . . . . . . . . . . . . . . . . . . . . . . . Robot Hacks Applied 2 | . . . 2 . . . . . . . . . . . . . . . . . . . . . . . parse_system 2 | . . . 2 . . . . . . . . . . . . . . . . . . . . . . . Relay Couplers Released 95 | . . . . 16 . 29 . . . . . . 28 . . . 19 . . . . 3 . . . . Machine Destruction 95 | . . . . 16 . 29 . . . . . . 28 . . . 19 . . . . 3 . . . . Fabnet Peak Effective % . | . . . . . . . . . . . . . . . . . . . . . . . . . . . Robots Rewired 8 | . . . . 2 . . . . . . . . . . . . 6 . . . . . . . . . Allies Hacked 11 | . . . . 3 . . . . . . . . . . . 4 . . . 1 . 3 . . . . Hacks Repelled . | . . . . . . . . . . . . . . . . . . . . . . . . . . . Allies | -11 -10 -10 -8 -8 -8 -8 -7 -7 -7 -7 -6 -6 -6 -6 -6 -5 -5 -5 -5 -4 -4 -4 -4 -4 -4 -3 -------- Run | Yrd Mat Sub Mat Gar Mat Gar Fac Low Low Zio Pro Fac Gar Fac DSF Fac Gar Fac DSF Fac Was Fac Upp Upp War Pro Total Allies 16 | . . . . 2 . 1 . . . 2 . . 2 . . . 8 . . . . . . . 1 . Largest Group 6 | . . . . 2 2 1 . . . 2 2 . 2 2 2 2 6 2 2 . . . . . 1 . Highest-Rated Group 142 | . . . . 40 40 20 . . . 56 56 . 142 142 142 142 132 124 124 . . . . . 80 . Highest-Rated Ally 80 | . . . . 20 20 20 . . . 31 31 . 80 80 80 80 62 62 62 . . . . . 80 . Initial Warlord ECA Mod 53 | . . . . . 6 6 16 16 16 16 15 15 15 26 26 35 35 44 44 53 53 53 52 52 52 . Warlord Squad Rendezvous 1 | . . . . . . . . . . . . . . . . . . . . . . 1 . . . . Infantry 1 | . . . . . . . . . . . . . . . . . . . . . . 1 . . . . Total Orders 18 | . . . . . . . . 4 2 . . . 7 . . 2 . . . . . 3 . . . . STAY 3 | . . . . . . . . 1 . . . . 1 . . . . . . . . 1 . . . . ROAM 7 | . . . . . . . . 2 2 . . . 2 . . 1 . . . . . . . . . . FOLLOW 4 | . . . . . . . . 1 . . . . 3 . . . . . . . . . . . . . AID 4 | . . . . . . . . . . . . . 1 . . 1 . . . . . 2 . . . . Ally Attacks 1155 | . . . 101 81 98 102 63 9 11 . 36 32 66 . 27 60 173 . 51 54 . 181 . . 10 . Total Damage 34671 | . . . 1956 2633 2497 2480 1163 342 441 . 807 1045 2091 . 1239 2604 5559 . 1682 1960 . 5977 . . 195 . Kills 285 | . . . 22 24 29 23 13 4 6 . 7 7 20 . 8 23 39 . 10 10 . 39 . . 1 . Allies Corrupted 13 | . . . . . . . 1 . . . . . 1 . . 6 3 . 1 . . 1 . . . . Allies Melted 5 | . . . . . . 1 . . . . . . . . . . 2 . . 1 . 1 . . . . Borg Created 90 | . . . 7 4 7 12 3 1 2 . 1 . 9 . . 9 15 . . 6 . 9 2 2 1 . Largest Collective 5 | . . . 3 5 5 5 4 4 4 . 5 . 4 . . 5 4 . . 4 . 5 2 4 1 . Intel | -11 -10 -10 -8 -8 -8 -8 -7 -7 -7 -7 -6 -6 -6 -6 -6 -5 -5 -5 -5 -4 -4 -4 -4 -4 -4 -3 ------- Run | Yrd Mat Sub Mat Gar Mat Gar Fac Low Low Zio Pro Fac Gar Fac DSF Fac Gar Fac DSF Fac Was Fac Upp Upp War Pro Active Infowar (turns) 11901 | . . . 459 . . . 593 710 447 1656 802 282 1866 6 282 1420 800 . 2 358 . . 431 831 956 . Sensors 4332 | . . . . . . . 81 710 160 597 545 21 . . . . . . . . . . 431 831 956 . Structural 1515 | . . . 459 . . . . . . 1056 . . . . . . . . . . . . . . . . T.N.C. 8715 | . . . . . . . 593 710 447 1656 802 282 1866 6 282 1420 651 . . . . . . . . . Machine Analysis 8703 | . . . . . . . 581 710 447 1656 802 282 1866 6 282 1420 651 . . . . . . . . . Spoofing 2 | . . . . . . . . . . . . . . . . . . . 2 . . . . . . . Jamming 1749 | . . . . . . . . . . . . . 639 4 213 116 419 . . 358 . . . . . . Robot Analysis Total 1 | . 1 . . . . . . . . . . . . . . . . . . . . . . . . . Derelict Logs Recovered 10 | . . 2 . . . . . 2 2 2 1 . . . . . . . . . . . . 1 . . Drone Launches . | . . . . . . . . . . . . . . . . . . . . . . . . . . . Drone Recoveries . | . . . . . . . . . . . . . . . . . . . . . . . . . . . Exploration | -11 -10 -10 -8 -8 -8 -8 -7 -7 -7 -7 -6 -6 -6 -6 -6 -5 -5 -5 -5 -4 -4 -4 -4 -4 -4 -3 ------------- Run | Yrd Mat Sub Mat Gar Mat Gar Fac Low Low Zio Pro Fac Gar Fac DSF Fac Gar Fac DSF Fac Was Fac Upp Upp War Pro Turns Passed 26136 | 20 2173 2782 1430 1071 1535 2140 594 710 447 1656 802 282 1866 6 282 1420 1859 27 264 675 118 1573 433 831 1067 73 Spaces Moved 13586 | 3 604 861 643 534 743 1103 327 378 220 920 412 136 845 3 183 983 1050 15 168 476 106 1029 258 647 796 143 Core 176 | . . . . . . . . . . . . . . . . . . . . . . . . . 33 143 Treads 1924 | 3 604 668 . . . . . . . . . . 649 . . . . . . . . . . . . . Legs 6004 | . . . . . . . . . . . . 127 196 3 183 983 1050 15 168 476 106 1029 258 647 763 . Wheels 5482 | . . 193 643 534 743 1103 327 378 220 920 412 9 . . . . . . . . . . . . . . Hover . | . . . . . . . . . . . . . . . . . . . . . . . . . . . Flight . | . . . . . . . . . . . . . . . . . . . . . . . . . . . Fastest Speed 50 | 160 160 150 170 155 130 145 145 175 175 175 175 175 115 115 115 111 109 109 105 105 110 110 117 117 50 50 Average Speed 157 | 160 284 282 180 170 180 157 147 175 175 175 175 179 158 115 122 120 110 109 108 107 110 116 117 117 116 50 Slowest Speed 480 | 160 320 480 185 185 295 175 175 175 175 175 175 180 240 115 124 124 166 109 109 155 161 186 117 117 190 50 Overloaded Moves . | . . . . . . . . . . . . . . . . . . . . . . . . . . . Propulsion Burnouts . | . . . . . . . . . . . . . . . . . . . . . . . . . . . Robots Hopped . | . . . . . . . . . . . . . . . . . . . . . . . . . . . Potential Cave-ins . | . . . . . . . . . . . . . . . . . . . . . . . . . . . Cave-ins Triggered . | . . . . . . . . . . . . . . . . . . . . . . . . . . . Exploration Rate (%) 54 | 2 83 50 79 85 70 92 11 83 55 84 61 6 95 1 97 34 85 2 82 12 75 26 44 58 84 28 Regions Visited 26 Branch Regions 9 Pre-discovered Areas 5 | . . 2 . . . . . 1 1 1 . . . . . . . . . . . . . . . . Known Exits Taken 8 | . . . 1 . 1 . 1 . . . . 1 . 1 . 1 . 1 . . . 1 . . . . Unknown Exits Taken 10 | 1 1 1 . . . . . 1 1 1 1 . . . . . . . . . . . 1 1 1 . Scrap Searched 16 | . . . . . . . . 6 . 4 1 . . . . . . . . . . . . 5 . . Spaces Dug 162 | . . . . 23 . 31 4 2 7 . 10 . 11 . . 12 27 . 1 5 . 14 5 2 8 . Terrain Destroyed 296 | . . 2 33 23 1 40 4 2 7 . 10 . 24 . . 12 27 . 1 5 . 14 5 2 84 . Melee 133 | . . . . . . 31 4 2 7 . 10 . 7 . . 11 27 . 1 5 . 14 4 2 8 . Projectile 13 | . . 2 2 . 1 . . . . . . . 4 . . 1 . . . . . . 1 . 2 . AOE 150 | . . . 31 23 . 9 . . . . . . 13 . . . . . . . . . . . 74 . Terrain Rammed . | . . . . . . . . . . . . . . . . . . . . . . . . . . . Walls Destroyed . | . . . . . . . . . . . . . . . . . . . . . . . . . . . Machines Disabled . | . . . . . . . . . . . . . . . . . . . . . . . . . . . Actions | -11 -10 -10 -8 -8 -8 -8 -7 -7 -7 -7 -6 -6 -6 -6 -6 -5 -5 -5 -5 -4 -4 -4 -4 -4 -4 -3 --------- Run | Yrd Mat Sub Mat Gar Mat Gar Fac Low Low Zio Pro Fac Gar Fac DSF Fac Gar Fac DSF Fac Was Fac Upp Upp War Pro Total 16942 | 12 905 1029 880 672 905 1321 418 408 264 967 464 173 1191 4 242 1144 1521 25 250 598 106 1320 378 698 903 144 Wait 1531 | . 146 33 124 49 61 53 55 16 28 38 24 26 154 . 37 69 222 11 37 71 . 138 103 26 10 . Move 13560 | 2 603 860 643 531 743 1102 326 377 219 919 411 135 844 2 182 982 1048 14 167 476 105 1028 257 646 795 143 Hop . | . . . . . . . . . . . . . . . . . . . . . . . . . . . Pick Up 226 | . 31 8 23 10 19 8 9 2 2 3 3 . 19 . 4 13 10 . 12 7 . 26 5 2 10 . Fast Attach 59 | . 3 2 10 . 1 2 2 . . . . . 4 . . 4 1 . 6 . . 9 . 2 13 . Attach 66 | 2 2 2 5 . 1 . 3 . . 2 1 6 11 . . 2 4 . . 4 . 8 2 . 10 1 Detach 14 | . . . 3 . . . . . . . . 3 6 . . . . . . . . . . . 2 . Swap 172 | 1 7 13 15 11 4 9 3 . 3 2 3 2 16 2 8 14 11 . 4 12 1 25 2 2 2 . Drop 255 | 3 12 12 26 10 19 11 7 2 2 3 2 . 28 . 8 17 9 . 19 4 . 29 2 5 25 . Fire 315 | 4 93 99 22 16 48 1 . . . . 5 . 9 . . 1 . . . . . . 1 . 16 . Melee 471 | . . . 2 . . 91 10 10 7 . 14 1 90 . 3 33 111 . 5 15 . 48 4 13 14 . Ram . | . . . . . . . . . . . . . . . . . . . . . . . . . . . Kick 4 | . . . . . . . . . . . . . . . . . . . . . . . . . 4 . Crush 8 | . 8 . . . . . . . . . . . . . . . . . . . . . . . . . Escape Stasis 60 | . . . . 24 . 32 . . . . . . . . . . 4 . . . . . . . . . Rewire 101 | . . . . 17 2 . . . . . . . 1 . . . 81 . . . . . . . . . Trap . | . . . . . . . . . . . . . . . . . . . . . . . . . . . Miscellaneous 100 | . . . 7 4 7 12 3 1 3 . 1 . 9 . . 9 20 . . 9 . 9 2 2 2 . Route ------- -11/Scrapyard -10/Materials (discovered 3 exits: [*Mat] / [*Min] / *Sub) -10/Subcaves -8/Materials (discovered 2 exits: *Fac / Gar) -8/Garrison (discovered 3 exits: *Mat x3) -8/Materials (discovered 3 exits: *Fac x2 / Gar) -8/Garrison (discovered 3 exits: *Fac x3) -7/Factory (discovered 2 exits: *Fac / *Low) -7/Lower Caves -7/Lower Caves -7/Zion -6/Proximity Caves -6/Factory (discovered 2 exits: Fac / Gar) -6/Garrison (discovered 3 exits: *Fac x3) -6/Factory -6/DSF -5/Factory (discovered 5 exits: *Fac x2 / [*Upp] / Ext / Gar) -5/Garrison (discovered 3 exits: *Fac x3) -5/Factory -5/DSF -4/Factory -4/Waste -4/Factory (discovered 2 exits: *Res / *Upp) -4/Upper Caves -4/Upper Caves (discovered 2 exits: *Res / *War) -4/Warlord -3/Proximity Caves History --------- Turn | Location | Event 16 | -11/Scrapyard | Discovered new exit (range 3) 21 | -11/Scrapyard | Entered Materials 313 | -10/Materials | Build established: Mutant 537 | -10/Materials | Discovered new exit (range 14) 937 | -10/Materials | Discovered new exit (range 5) 2166 | -10/Materials | Discovered new exit (range 10) 2194 | -10/Materials | Entered Subcaves 2195 | -10/Subcaves | Approached by a straggling Scientist 2458 | -10/Subcaves | Discovered new exit (range 7) 2514 | -10/Subcaves | Learned location of Zion (-7) 2514 | -10/Subcaves | Met a Zionite searching for "candidates" 2764 | -10/Subcaves | A swath of the cavern ceiling suddenly collapsed 2961 | -10/Subcaves | Visited Clippyterm 2970 | -10/Subcaves | Learned Factory garrison access intel 3188 | -10/Subcaves | Core integrity fell below 50% 3365 | -10/Subcaves | Build established: Scavenger-Mutant 3721 | -10/Subcaves | Shifting Twisted Machinery released Sub. Monowheel 3737 | -10/Subcaves | Shifting Twisted Machinery released Flamer 4015 | -10/Subcaves | Ambushed by angry Subdweller bent on revenge 4492 | -10/Subcaves | Visited 4L-MR0's lab 4513 | -10/Subcaves | Found Prototype Special Melee Weapon 4527 | -10/Subcaves | Found Cargo Legs 4656 | -10/Subcaves | Core integrity fell below 20% 4976 | -10/Subcaves | Entered Materials 4976 | -8/Materials | Evolved 4 slots: Weapon x4 4978 | -8/Materials | Identified 1B-0RG's Assimilator 5086 | -8/Materials | Assimilating Defender 3a into Collective. 5160 | -8/Materials | Assimilating Commando 3a into Collective. 5414 | -8/Materials | Assimilating Shepherd 3a into Collective. 5443 | -8/Materials | Lost 3 parts (1p1n1w) 5518 | -8/Materials | Discovered new exit (range 4) 5557 | -8/Materials | Identified exit to Factory 5753 | -8/Materials | Assimilating Commando 3b into Collective. 5806 | -8/Materials | Build established: Mutant 5817 | -8/Materials | Assimilating Commando 3c into Collective. 6380 | -8/Materials | Assimilating Commando 3d into Collective. 6389 | -8/Materials | Assimilating Shepherd 3b into Collective. 6395 | -8/Materials | Identified exit to Garrison 6406 | -8/Materials | Entered Garrison 6406 | -8/Garrison | Accompanied by 3 allies 6489 | -8/Garrison | Assimilating Trooper 3a into Collective. 6494 | -8/Garrison | Assimilating Defender 3b into Collective. 6511 | -8/Garrison | Assimilating Defender 3c into Collective. 6537 | -8/Garrison | Assimilating Shotgunner 3a into Collective. 6583 | -8/Garrison | Core integrity fell below 50% 6773 | -8/Garrison | Garrison Relay disabled 6854 | -8/Garrison | Discovered new exit (range 3) 6875 | -8/Garrison | Attempted to access garrison exit controls, blocked by remote lockdown 7083 | -8/Garrison | Discovered new exit (range 11) 7090 | -8/Garrison | Discovered new exit (range 61) 7090 | -8/Garrison | Discovered new exit (range 59) 7090 | -8/Garrison | Discovered new exit (range 16) 7130 | -8/Garrison | Garrison Relay disabled 7176 | -8/Garrison | Attempted to access garrison exit controls, blocked by remote lockdown 7284 | -8/Garrison | Garrison Relay disabled 7410 | -8/Garrison | Garrison Relay disabled 7477 | -8/Garrison | Entered Materials 7477 | -8/Materials | Accompanied by 5 allies 7574 | -8/Materials | Assimilating Defender 3d into Collective. 7612 | -8/Materials | Assimilating Technician 3a into Collective. 7830 | -8/Materials | Lost 5 allies 7914 | -8/Materials | Assimilating Defender 3e into Collective. 7931 | -8/Materials | Assimilating Defender 3f into Collective. 8050 | -8/Materials | Assimilating Defender 3g into Collective. 8314 | -8/Materials | Assimilating Trooper 3b into Collective. 8515 | -8/Materials | Discovered exit to Factory (range 15) 8535 | -8/Materials | Assimilating Defender 3h into Collective. 8903 | -8/Materials | Discovered exit to Factory (range 16) 8967 | -8/Materials | Garrison activated, responded to threat 9012 | -8/Materials | Identified exit to Garrison 9012 | -8/Materials | Entered Garrison 9012 | -8/Garrison | Accompanied by 2 allies 9037 | -8/Garrison | Assimilating Informer 3a into Collective. 9050 | -8/Garrison | Assimilating Defender 3i into Collective. 9134 | -8/Garrison | Garrison Relay disabled 9142 | -8/Garrison | Garrison Relay disabled 9298 | -8/Garrison | Triggered checkpoint 9345 | -8/Garrison | Triggered checkpoint 9386 | -8/Garrison | Assimilating Trooper 3c into Collective. 9399 | -8/Garrison | Assimilating Trooper 3d into Collective. 9476 | -8/Garrison | Spotted B-75 Beast 9485 | -8/Garrison | Assimilating Beast 3a into Collective. 9539 | -8/Garrison | Garrison Relay disabled 9610 | -8/Garrison | Triggered checkpoint 9620 | -8/Garrison | Garrison Relay disabled 9666 | -8/Garrison | Assimilating Defender 3j into Collective. 9670 | -8/Garrison | Rescued a captive Derelict 9751 | -8/Garrison | Discovered exit to Factory (range 15) 9757 | -8/Garrison | Assimilating Defender 3k into Collective. 9948 | -8/Garrison | Triggered checkpoint 9962 | -8/Garrison | Triggered checkpoint 10047 | -8/Garrison | Assimilating Soldier 3a into Collective. 10084 | -8/Garrison | Lost 5 allies 10090 | -8/Garrison | Discovered exit to Factory (range 12) 10160 | -8/Garrison | Garrison Relay disabled 10227 | -8/Garrison | Garrison Relay disabled 10236 | -8/Garrison | Triggered checkpoint 10238 | -8/Garrison | Assimilating Trooper 3e into Collective. 10244 | -8/Garrison | Assimilating Trooper 3f into Collective. 10252 | -8/Garrison | Assimilating Trooper 3g into Collective. 10370 | -8/Garrison | Triggered checkpoint 10373 | -8/Garrison | Assimilating Marksman 3a into Collective. 10392 | -8/Garrison | Garrison Relay disabled 10443 | -8/Garrison | Discovered exit to Factory (range 8) 11152 | -8/Garrison | Entered Factory 11152 | -7/Factory | Accompanied by 4 allies 11152 | -7/Factory | Evolved 2 slots: Propulsion x2 11153 | -7/Factory | Loaded intel: 4 garrison access locations 11153 | -7/Factory | Attached Cargo Legs, gained temporary slots: Utility x2 11335 | -7/Factory | Assimilating Informer 4a into Collective. 11419 | -7/Factory | Discovered new exit (range 7) 11447 | -7/Factory | Assimilating Trooper 4a into Collective. 11518 | -7/Factory | Assimilating Guardian 4a into Collective. 11649 | -7/Factory | Discovered new exit (range 30) 11664 | -7/Factory | Identified exit to Lower Caves 11746 | -7/Factory | Entered Lower Caves 11746 | -7/Lower Caves | Accompanied by 3 allies 11752 | -7/Lower Caves | Assimilating Virus 4a into Collective. 11756 | -7/Lower Caves | Met a Warlord Commander 11757 | -7/Lower Caves | Learned location of Warlord (-4) 11758 | -7/Lower Caves | Warlord Commander delivered Encrypted Comm Array 11759 | -7/Lower Caves | Found Encrypted Comm Array 11887 | -7/Lower Caves | Discovered new exit (range 136) 12076 | -7/Lower Caves | Attracted the attention of an 0b10 checkpoint 12106 | -7/Lower Caves | Learned Factory interactive machine intel 12144 | -7/Lower Caves | Found DCF Scrap (12 items) 12197 | -7/Lower Caves | Learned 4 Factory zone layouts 12456 | -7/Lower Caves | Entered another Lower Caves area 12456 | -7/Lower Caves | Accompanied by 4 allies 12628 | -7/Lower Caves | Spotted B-75 Beast 12646 | -7/Lower Caves | Assimilating Beast 4a into Collective. 12647 | -7/Lower Caves | Discovered new exit (range 38) 12756 | -7/Lower Caves | Assimilating Trooper 4b into Collective. 12903 | -7/Lower Caves | Entered Zion 12903 | -7/Zion | Accompanied by 4 allies 12994 | -7/Zion | Discovered new exit (range 16) 13267 | -7/Zion | Learned location of Data Miner (-6) 13369 | -7/Zion | Received a visual enhancement algorithm 13697 | -7/Zion | Gained Derelict followers 14559 | -7/Zion | Entered Proximity Caves 14559 | -6/Proximity Caves | Accompanied by 6 allies 14589 | -6/Proximity Caves | Attracted the attention of an 0b10 checkpoint 14640 | -6/Proximity Caves | Spotter reported a threat 14642 | -6/Proximity Caves | Spotter reported a threat 14749 | -6/Proximity Caves | Spotted B-75 Beast 14759 | -6/Proximity Caves | Assimilating Beast 5a into Collective. 14778 | -6/Proximity Caves | Spotter reported a threat 15083 | -6/Proximity Caves | Learned 8 Factory zone layouts 15310 | -6/Proximity Caves | Discovered new exit (range 8) 15361 | -6/Proximity Caves | Entered Factory 15361 | -6/Factory | Accompanied by 5 allies 15361 | -6/Factory | Evolved 2 slots: Propulsion x2 15362 | -6/Factory | Identified exit to Factory 15363 | -6/Factory | Loaded intel: 54 interactive machine locations 15375 | -6/Factory | Garrison activated, responded to threat 15576 | -6/Factory | Identified exit to Garrison 15643 | -6/Factory | Entered Garrison 15643 | -6/Garrison | Accompanied by 3 allies 15897 | -6/Garrison | Assimilating Slayer 5a into Collective. 15965 | -6/Garrison | Triggered checkpoint 15997 | -6/Garrison | Garrison Relay disabled 16004 | -6/Garrison | Assimilating Slicer 5a into Collective. 16010 | -6/Garrison | Assimilating Guardian 5a into Collective. 16024 | -6/Garrison | Assimilating Guardian 5b into Collective. 16032 | -6/Garrison | Garrison Relay disabled 16043 | -6/Garrison | Garrison Relay disabled 16050 | -6/Garrison | Garrison Relay disabled 16347 | -6/Garrison | Triggered checkpoint 16354 | -6/Garrison | Triggered checkpoint 16447 | -6/Garrison | Triggered checkpoint 16517 | -6/Garrison | Triggered checkpoint 16554 | -6/Garrison | Garrison Relay disabled 16603 | -6/Garrison | Discovered new exit (range 8) 16803 | -6/Garrison | Discovered new exit (range 15) 16929 | -6/Garrison | Assimilating Slayer 5b into Collective. 16940 | -6/Garrison | Assimilating Slayer 5c into Collective. 17101 | -6/Garrison | Triggered checkpoint 17109 | -6/Garrison | Assimilating Guardian 5c into Collective. 17131 | -6/Garrison | Build established: Scavenger-Mutant 17159 | -6/Garrison | Garrison Relay disabled 17225 | -6/Garrison | Triggered checkpoint 17326 | -6/Garrison | Found embedded Infiltrators 17345 | -6/Garrison | Triggered checkpoint 17349 | -6/Garrison | Assimilating Guardian 5d into Collective. 17354 | -6/Garrison | Assimilating Guardian 5e into Collective. 17375 | -6/Garrison | Garrison Relay disabled 17406 | -6/Garrison | Found Fusion Bomb Launcher 17465 | -6/Garrison | Discovered new exit (range 10) 17509 | -6/Garrison | Entered Factory 17509 | -6/Factory | Accompanied by 6 allies 17515 | -6/Factory | Identified exit to DSF 17515 | -6/Factory | Entered DSF 17515 | -6/DSF | Accompanied by 6 allies 17548 | -6/DSF | Additional patrols routed to DSF 17551 | -6/DSF | Discovered exit to Factory (range 15) 17699 | -6/DSF | Build established: Mutant 17718 | -6/DSF | Sterilization system engaged 17738 | -6/DSF | Ambient heat levels rising (+10) 17753 | -6/DSF | Ambient heat levels rising (+10) 17768 | -6/DSF | Ambient heat levels rising (+10) 17783 | -6/DSF | Ambient heat levels rising (+10) 17797 | -6/DSF | Entered Factory 17797 | -5/Factory | Accompanied by 6 allies 17797 | -5/Factory | Evolved 2 slots: Utility x2 17798 | -5/Factory | Identified exit to Extension 17844 | -5/Factory | Assimilating Smith 6a into Collective. 18244 | -5/Factory | Assimilating Virus 6a into Collective. 18272 | -5/Factory | Lost 4 allies 18411 | -5/Factory | Assimilating Sentinel 6a into Collective. 18435 | -5/Factory | Assimilating Sage 6a into Collective. 18440 | -5/Factory | Assimilating Sage 6b into Collective. 18623 | -5/Factory | Discovered new exit (range 12) 18718 | -5/Factory | Discovered new exit (range 13) 18822 | -5/Factory | Discovered new exit (range 9) 18865 | -5/Factory | Spotted B-75 Beast 18897 | -5/Factory | Central database locked down 18917 | -5/Factory | Assimilating Soldier 6a into Collective. 18925 | -5/Factory | Assimilating Sentinel 6b into Collective. 18997 | -5/Factory | First assault squad dispatched 19078 | -5/Factory | Assimilating Sage 6c into Collective. 19157 | -5/Factory | Assimilating Sentinel 6c into Collective. 19190 | -5/Factory | Identified exit to Garrison 19217 | -5/Factory | Entered Garrison 19217 | -5/Garrison | Accompanied by 1 ally 19423 | -5/Garrison | Triggered checkpoint 19423 | -5/Garrison | Spotted B-75 Beast 19425 | -5/Garrison | Assimilating Virus 6b into Collective. 19431 | -5/Garrison | Assimilating Virus 6c into Collective. 19444 | -5/Garrison | Assimilating Virus 6d into Collective. 19447 | -5/Garrison | Triggered checkpoint 19450 | -5/Garrison | Assimilating Beast 6a into Collective. 19522 | -5/Garrison | Triggered checkpoint 19525 | -5/Garrison | Assimilating Virus 6e into Collective. 19535 | -5/Garrison | Assimilating Virus 6f into Collective. 19565 | -5/Garrison | Triggered checkpoint 19593 | -5/Garrison | Lost 3 allies 19649 | -5/Garrison | Triggered checkpoint 19651 | -5/Garrison | Assimilating Soldier 6b into Collective. 19654 | -5/Garrison | Assimilating Soldier 6c into Collective. 19661 | -5/Garrison | Garrison Relay disabled 19792 | -5/Garrison | Triggered checkpoint 19803 | -5/Garrison | Triggered checkpoint 19804 | -5/Garrison | Assimilating Soldier 6d into Collective. 19814 | -5/Garrison | Assimilating Soldier 6e into Collective. 19890 | -5/Garrison | Garrison Relay disabled 19947 | -5/Garrison | Triggered checkpoint 19954 | -5/Garrison | Discovered new exit (range 12) 19984 | -5/Garrison | Assimilating Soldier 6f into Collective. 20372 | -5/Garrison | Garrison Relay disabled 20403 | -5/Garrison | Triggered checkpoint 20410 | -5/Garrison | Assimilating Warrior 6d into Collective. 20431 | -5/Garrison | Garrison Relay disabled 20434 | -5/Garrison | Lost 6 allies 20467 | -5/Garrison | Spotted Striker 20475 | -5/Garrison | Triggered checkpoint 20481 | -5/Garrison | Spotted Striker 20525 | -5/Garrison | Discovered new exit (range 4) 20535 | -5/Garrison | Assimilating Striker into Collective. 20551 | -5/Garrison | Assimilating Striker into Collective. 20624 | -5/Garrison | Spotted B-75 Beast 20624 | -5/Garrison | Spotted B-75 Beast 20638 | -5/Garrison | Assimilating Beast 6b into Collective. 20644 | -5/Garrison | Allies destroyed B-75 Beast 20727 | -5/Garrison | Found embedded Infiltrators 20756 | -5/Garrison | Discovered new exit (range 12) 20835 | -5/Garrison | Triggered checkpoint 20883 | -5/Garrison | Garrison Relay disabled 20935 | -5/Garrison | Attempted to access garrison exit controls, blocked by remote lockdown 21076 | -5/Garrison | Entered Factory 21076 | -5/Factory | Accompanied by 6 allies 21088 | -5/Factory | Identified exit to DSF 21103 | -5/Factory | Entered DSF 21103 | -5/DSF | Accompanied by 6 allies 21116 | -5/DSF | Additional patrols routed to DSF 21200 | -5/DSF | Discovered new exit (range 16) 21221 | -5/DSF | Lost 3 allies 21233 | -5/DSF | System corruption reached 10% 21291 | -5/DSF | Sterilization system engaged 21311 | -5/DSF | Ambient heat levels rising (+10) 21326 | -5/DSF | Ambient heat levels rising (+10) 21341 | -5/DSF | Ambient heat levels rising (+10) 21356 | -5/DSF | Ambient heat levels rising (+10) 21367 | -5/DSF | Entered Factory 21367 | -4/Factory | Accompanied by 3 allies 21367 | -4/Factory | Evolved 2 slots: Power x1, Utility x1 21429 | -4/Factory | Found Quantum Capacitor 21617 | -4/Factory | First assault squad dispatched 21771 | -4/Factory | Assimilating Assassin 7a into Collective. 21777 | -4/Factory | Assimilating Sentinel 7a into Collective. 21788 | -4/Factory | Assimilating Sage 7a into Collective. 21797 | -4/Factory | Assimilating Sage 7b into Collective. 21803 | -4/Factory | Assimilating Assassin 7b into Collective. 21804 | -4/Factory | Lost 4 allies 21968 | -4/Factory | Repaired Thunder Leg+ 21999 | -4/Factory | Assimilating Artificer 7a into Collective. 22042 | -4/Factory | Sucked down chute 22042 | -4/Factory | Entered Waste 22045 | -4/Waste | Lost 5 allies 22054 | -4/Waste | Spotted C-40 Crusher 22070 | -4/Waste | Spotted C-40 Crusher 22072 | -4/Waste | Spotted C-40 Crusher 22083 | -4/Waste | Spotted C-40 Crusher 22100 | -4/Waste | Spotted C-40 Crusher 22101 | -4/Waste | Spotted C-40 Crusher 22116 | -4/Waste | Crushed by Compactor (0 parts destroyed, 2 dropped) 22118 | -4/Waste | Crushed by Compactor (1 part destroyed, 1 dropped) 22144 | -4/Waste | Discovered new exit (range 15) 22160 | -4/Waste | Entered Factory 22245 | -4/Factory | Assimilating Virus 7a into Collective. 22265 | -4/Factory | Assimilating Virus 7b into Collective. 22395 | -4/Factory | Assimilating Sentinel 7b into Collective. 22435 | -4/Factory | Assimilating Machinist 7a into Collective. 22469 | -4/Factory | Discovered new exit (range 2) 22532 | -4/Factory | Identified exit to Research 22679 | -4/Factory | Assimilating Sage 7c into Collective. 22685 | -4/Factory | Assimilating Sage 7d into Collective. 22703 | -4/Factory | Assimilating Assassin 7c into Collective. 22790 | -4/Factory | Joined by Warlord Infantry squad 23027 | -4/Factory | Assimilating Artificer 7b into Collective. 23313 | -4/Factory | Discovered new exit (range 9) 23325 | -4/Factory | Assimilating Sentinel 7c into Collective. 23360 | -4/Factory | Garrison activated, responded to threat 23410 | -4/Factory | First assault squad dispatched 23561 | -4/Factory | Lost 3 allies 23655 | -4/Factory | Lost 3 allies 23733 | -4/Factory | Identified exit to Upper Caves 23733 | -4/Factory | Entered Upper Caves 23967 | -4/Upper Caves | Assimilating BP-55Y(S) into Collective. 23996 | -4/Upper Caves | Assimilating LS-N91(S) into Collective. 24115 | -4/Upper Caves | Discovered new exit (range 14) 24166 | -4/Upper Caves | Entered another Upper Caves area 24166 | -4/Upper Caves | Accompanied by 2 allies 24219 | -4/Upper Caves | Discovered exit to Research (range 6) 24227 | -4/Upper Caves | Learned Research trap positions 24604 | -4/Upper Caves | Assimilating EE-3ZJ(S) into Collective. 24625 | -4/Upper Caves | Assimilating GS-RPW(S) into Collective. 24978 | -4/Upper Caves | Discovered new exit (range 11) 24997 | -4/Upper Caves | Entered Warlord 24997 | -4/Warlord | Accompanied by 4 allies 25097 | -4/Warlord | Warlord's base attacked by MAIN.C 25306 | -4/Warlord | Found Prototype Energy Gun 25306 | -4/Warlord | Identified Vortex Rifle 25316 | -4/Warlord | Found Prototype Energy Gun 25316 | -4/Warlord | Identified Vortex Shotgun 25368 | -4/Warlord | Found Prototype Special Weapon 25368 | -4/Warlord | Identified RU-N14's Throwing Claymores v3 25375 | -4/Warlord | Found RU-N14's Throwing Claymores v3 25378 | -4/Warlord | Found RU-N14's Throwing Claymores v3 25380 | -4/Warlord | Found RU-N14's Throwing Claymores v3 25383 | -4/Warlord | Found RU-N14's Throwing Claymores v3 25447 | -4/Warlord | Warlord forces counterattacked 25475 | -4/Warlord | Met Warlord 25533 | -4/Warlord | Found Prototype Device 25533 | -4/Warlord | Identified Exp. Phase Shifter 25540 | -4/Warlord | Found Prototype Processor 25540 | -4/Warlord | Identified Exp. Target Analyzer 25549 | -4/Warlord | Found Prototype Reactor 25549 | -4/Warlord | Identified Vortex Chain Reactor 25651 | -4/Warlord | Spotted Executioner 25704 | -4/Warlord | Found Prototype Hackware 25719 | -4/Warlord | Lost 6 allies 25772 | -4/Warlord | Warlord base infiltrated, sounded retreat 25812 | -4/Warlord | Lost 3 allies 25813 | -4/Warlord | Attacked by Warlord forces 25867 | -4/Warlord | Spotted B-86 Titan 25874 | -4/Warlord | Spotted Striker 25884 | -4/Warlord | Spotted Executioner 25889 | -4/Warlord | Assimilating Striker into Collective. 25920 | -4/Warlord | Lost 5 parts (4u1w) 25931 | -4/Warlord | Lost 4 allies 25950 | -4/Warlord | Core integrity fell below 50% 25951 | -4/Warlord | Destroyed Executioner 25975 | -4/Warlord | Destroyed 8 combat bots 25991 | -4/Warlord | Destroyed LV-01A 26035 | -4/Warlord | Lost 9 parts (6n2u1w) 26037 | -4/Warlord | Spotted Executioner 26048 | -4/Warlord | System corruption reached 10% 26051 | -4/Warlord | Spotted Executioner 26054 | -4/Warlord | Core integrity fell below 20% 26056 | -4/Warlord | Spotted Executioner 26059 | -4/Warlord | Discovered new exit (range 12) 26064 | -4/Warlord | Entered Proximity Caves 26110 | -3/Proximity Caves | Spotted B-86 Titan 26137 | -3/Proximity Caves | Destroyed by H-77 Assassin with Coil Gun Last Messages --------------- 26047_ System corrupted by crushing effect (+4). 26047_ Knocked back. 26048_ Dropped Hcp. Storage Unit. 26052_ Graphene Brace blown off. 26052_ E-15 Imp destroyed. 26054_ Slug penetrates Wall. 26057_ System corrupted: Energy discharge (-24). 26057_ E-15 Imp destroyed. 26058_ Penetrated by Slug. 26058_ Slug penetrates Wall. 26059_ EXIT=FOUND 26063_ E-15 Imp triggered Dirty Bomb Trap. 26063_ An explosion rips through the floor. 26063_ E-15 Imp destroyed. LOCATION=UNKNOWN GOAL=ESCAPE 26064_ Encrypted Comm Array fries itself. 26093_ JRD1VHCCLY1BAW2 7 R,VFCNH>KVL3I4&3 26124_ System corrupted: Matter fused (-6). 26137_ Penetrated by Slug. Map ----- +----------------------------------------------------+ | ?????????????????????????????????????????????????? | | ?????????????????????????????????????????????????? | | ???????????????????????????????????????????????? | | #???????????????????????????????????????????????? | | #???????????????????????????????????????????????? | | ##??????????????????????????????????????????????? | | #??????????????????????????????????????????????? | | ???????????????????????????????????????????????? | | ???????????????????????????????????????????????? | | ????????????????????????????????????????????????? | | ????????????????????????????????????????????????? | | ?????????????????????????????????????????????????? | | ?????????????????????????????????????????????????? | | ?????????????????????????????????????????????????? | | ?????????????????????????????????????????????????? | | # ???????????????????????????????????????????????? | | # ???????????????????????????????????????????????? | | # ???????????????????????????????????????????????? | | ????????????????????????????###???????????????? | | ??????????????####?######??# ##??????????????? | | ?????????????## ### ### ##?????????????? | | # #??????????### ### ?????????? | | ?# ###??????## h?????????? | | ?# ######## ????????? | | #?# ## #??????????? | | #?## @ #??????????? | | #??# # #?????????? | | ???# ## #????????? | | #### ##### ?????????? | | #???## #### ## ?????????? | | ##???####??# ####### ??????????? | | ## ##???????# ##?????? ## ??????????? | | ?## #???????# #???????? ####????????????? | | ??# ###?????# #????????? #???????????????? | | ## ###???# #????????? #???????????????? | | # ### #??? ##?????????? ???????????????? | | ##?# #?? #???????????? ??????????????? | | ###??# ##?# #????????????? ??????????????? | | ????? ##??? ##????????????????????????????? | | ???? ##???? ###??????????????????????????????? | | ???# #####???????????????????????????????????????? | | ???##????????????????????????????????????????????? | | ?????????????????????????????????????????????????? | | ?????????????????????????????????????????????????? | | ?????????????????????????????????????????????????? | | ?????????????????????????????????????????????????? | | ?????????????????????????????????????????????????? | | ?????????????????????????????????????????????????? | | ?????????????????????????????????????????????????? | | ?????????????????????????????????????????????????? | +----------------------------------------------------+ Best States ------------- Heat Dissipation 45 Energy Generation 55 Energy Capacity 700 Matter Stores 300 Matter Capacity 300 Sight Range 16 Robot Scan Range 19 Terrain Scan Density 10 Jamming Range 14 Additional Mass Support 12 Armor Coverage 450 Utility Shielding 66 Melee Speed Boost 30 Phase Shifting 20 Evasion (%) 102 Recoil Reduction 4 Item Schematics ----------------- Enh. Autogun | -8/Materials | Scanalyzed Imp. Carbon-fiber Leg | -8/Materials | Scanalyzed Robot Schematics ------------------ None Fabricated ------------ Nothing Repaired ---------- Thunder Leg | 9% | -4/Factory Studied --------- Imp. Grenade Launcher | -8/Materials | Hacked Axe | -8/Materials | Hacked Wheel | -8/Materials | Hacked Carbon-fiber Leg | -8/Materials | Hacked Titanium Leg | -8/Materials | Hacked Imp. Carbon-fiber Leg | -6/Factory | Hacked Thunder Leg | -5/Factory | Hacked Alien Tech Used ----------------- None Achievements -------------- Bullet Installation Hot Goods I Like You, Cogmind Special Forces We Love MA Window Shopping Challenges ------------ None Game ------ Seed ArmorProcessingStreamer Manual? 0 Play Time 05:38:16 Cumulative 459.9 hours Start 2026.02.17 @ 17:41:33 End 2026.02.18 @ 00:17:15 Sessions 1 Manual Loads 0 Difficulty Rogue Special Mode None Game No. 218 Rogue 218 Adventurer 0 Explorer 0 Win Type - Total 15 Types 8/0/5/2/0/0/0/0/0/0 Lore% 70 Gallery% 71 Achievement% 53 Wizard Run 0 Options --------- Layout 0 ASCII 0 Keyboard 0 Movement Numpad Keybinds 0 Fullscreen 1 Font 18/SmallcapsGlow Map View 76x50 Zoom Use 0% Tactical HUD 1 Map Filters NONE Filters NONE Steam 1 RUN: 0071532a-f581-4034-8fab-faa94df0d8a1